Workbook

Sheet Tabelle1
G6: Prozent Verluste
B7: Euro pro t FM | C7: Ertrag in to/ha FM | D7: Hektar | E7: Euro pro ha FM | F7: Gesamt- ertrag | G7: < 1 m Vorschub Winter | I7: < 2 m Vorschub Sommer | K7: Schaufel- entnahme | M7: > 8 h locker im Silo | O7: > 12 h im Be-schicker | Q7: Ver- luste gesamt % | R7: Verlust gesamt t (FM) | S7: Verlust in € | T7: Roh- faser- haltig | U7: Verlust in ha
A8: Maissilage | B8: 45 | C8: 55 | D8: 190 | E8: =B8*C8 -> 2475 | F8: =C8*D8 -> 10450 | G8: JA | H8: =IF(G8="JA",2.5,0) -> 2.5 | I8: JA | J8: =IF(I8="JA",2.5,0) -> 2.5 | K8: JA | L8: =IF(K8="JA",2,0) -> 2 | M8: JA | N8: =IF(M8="JA",2,0) -> 2 | O8: JA | P8: =IF(O8="JA",2,0) -> 2 | Q8: =(P8+N8+L8+J8+H8)/100 -> 0.11 | R8: =F8*Q8 -> 1149.5 | S8: =R8*B8 -> 51727.5 | T8: NEIN | U8: =R8/C8 -> 20.9
A9: Grassilage | B9: 50 | C9: 45 | D9: 0 | E9: =B9*C9 -> 2250 | F9: =C9*D9 -> 0 | G9: NEIN | H9: =IF(G9="JA",2.5,0) -> 0 | I9: NEIN | J9: =IF(I9="JA",2.5,0) -> 0 | K9: JA | L9: =IF(K9="JA",2,0) -> 2 | M9: JA | N9: =IF(M9="JA",2,0) -> 2 | O9: JA | P9: =IF(O9="JA",2,0) -> 2 | Q9: =(P9+N9+L9+J9+H9)/100 -> 0.06 | R9: =F9*Q9 -> 0 | S9: =R9*B9 -> 0 | T9: JA | U9: =R9/C9 -> 0
A10: Silphie | B10: 45 | C10: 40 | D10: 4 | E10: 1800 | F10: =C10*D10 -> 160 | G10: NEIN | H10: 0 | I10: NEIN | J10: 0 | K10: JA | L10: 2 | M10: JA | N10: 2 | O10: JA | P10: 2 | Q10: 0.06 | R10: 9.6 | S10: 432 | T10: JA | U10: =R10/C10 -> 0.24
A11: GPS | B11: 50 | C11: 45 | D11: 30 | E11: 2250 | F11: =C11*D11 -> 1350 | G11: NEIN | H11: 0 | I11: NEIN | J11: 0 | K11: NEIN | L11: 0 | M11: NEIN | N11: 0 | O11: JA | P11: 2 | Q11: 0.02 | R11: =F11*Q11 -> 27 | S11: 1350 | T11: JA | U11: =R11/C11 -> 0.6
D12: =SUM(D8:D11) -> 224 | F12: =SUM(F8:F11) -> 11960 | R12: =SUM(R8:R11) -> 1186.1 | S12: =SUM(S8:S11) -> 53509.5 | U12: =SUM(U8:U11) -> 21.74
B13: Verluste
B14: JA
B15: NEIN
A17: Verlust in Euro | L17: =S12 -> 53509.5
A19: Mehrzukauf/Verlust | P19: =U12 -> 21.74
A21: Melde dich gleich bei unseren Biogasexperten !!!!
